fUSD/lending_fUSD_20240708
["ID","MTS","AMOUNT","RATE_DAILY","PERIOD"]
[331505993,1720444514833,-1358.72,0.00052054,120]
[331505994,1720444514921,-1358.72,0.00052054,120]
[331505995,1720444515005,-1358.72,0.00052054,120]
[331505996,1720444515090,-1358.72,0.00052054,120]
[331505997,1720444515178,-1358.72,0.00052054,120]
[331505998,1720444515267,-1358.72,0.00052054,120]
[331505999,1720444515356,-1358.72,0.00052054,120]
[331506000,1720444515445,-1358.72,0.00052054,120]
[331506001,1720444515528,-559.55,0.00052054,120]
[331506002,1720444515611,-500.0,0.00052054,120]
[331506003,1720444515695,-500.0,0.00052054,120]
[331506004,1720444515780,-500.0,0.00052054,120]
[331506005,1720444515864,-500.0,0.00052054,120]
[331506006,1720444515950,-436.64,0.00052054,120]
[331506007,1720444516039,-1762.44,0.00052054,120]
[331506008,1720444516131,-3501.0,0.00052054,120]
[331506009,1720444516227,-413.72,0.00052054,120]
[331506010,1720444516318,-2091.42,0.00052054,120]
[331506011,1720444516410,-995.0,0.00052054,120]
[331506012,1720444516494,-151.25415033,0.00052113,60]
[331506013,1720444516578,-151.14628757,0.00052218,60]
[331506014,1720444516661,-150.0,0.000523,40]
[331506015,1720444516743,-500.0,0.00052328,120]
[331506016,1720444516823,-500.0,0.00052328,120]
[331506017,1720444516909,-2078.73,0.00052328,120]
[331506018,1720444516992,-500.0,0.00052328,120]
[331506019,1720444517077,-500.0,0.00052328,120]
[331506020,1720444517163,-754.88,0.00052328,120]
[331506021,1720444517244,-500.0,0.00052328,120]
[331506022,1720444517323,-500.0,0.00052328,120]
[331506023,1720444517408,-500.0,0.00052328,120]
[331506024,1720444517492,-500.0,0.00052328,120]
[331506025,1720444517578,-1684.15,0.00052328,120]
[331506026,1720444517668,-500.0,0.00052328,120]
[331506027,1720444517757,-500.0,0.00052328,120]
[331506028,1720444518052,-500.0,0.00052328,120]
[331506029,1720444518131,-1733.81,0.00052328,120]
[331506030,1720444518209,-1653.08,0.00052328,120]
[331506031,1720444518287,-500.0,0.00052328,120]
[331506032,1720444518365,-684.17,0.00052328,120]
[331506033,1720444518447,-500.0,0.00052328,120]
[331506034,1720444518525,-626.33,0.00052328,120]
[331506035,1720444518604,-1183.41,0.00052328,120]
[331506036,1720444518685,-500.0,0.00052328,120]
[331506037,1720444518767,-500.0,0.00052328,120]
[331506038,1720444518847,-697.42,0.00052328,120]
[331506039,1720444518924,-500.0,0.00052328,120]
[331506040,1720444519012,-1492.66,0.00052328,120]
[331506041,1720444519101,-893.27,0.00052328,120]
[331506042,1720444519188,-687.27,0.00052328,120]
[331506043,1720444519272,-500.0,0.00052328,120]
[331506044,1720444519354,-500.0,0.00052328,120]
[331506045,1720444519439,-578.06,0.00052328,120]
[331506046,1720444519526,-500.0,0.00052328,120]
[331506047,1720444519607,-500.0,0.00052328,120]
[331506048,1720444519694,-929.58,0.00052328,120]
[331506049,1720444519778,-628.14,0.00052328,120]
[331506050,1720444519855,-500.0,0.00052328,120]
[331506051,1720444519938,-500.0,0.00052328,120]
[331506052,1720444520024,-500.0,0.00052328,120]
[331506053,1720444520109,-575.43,0.00052328,120]
[331506054,1720444520194,-500.0,0.00052328,120]
[331506055,1720444520278,-606.58,0.00052328,120]
[331506056,1720444520364,-500.0,0.00052328,120]
[331506057,1720444520444,-500.0,0.00052328,120]
[331506058,1720444520526,-500.0,0.00052328,120]
[331506059,1720444520609,-500.0,0.00052328,120]
[331506060,1720444520692,-500.0,0.00052328,120]
[331506061,1720444520774,-1428.1,0.00052328,120]
[331506062,1720444520852,-500.0,0.00052328,120]
[331506063,1720444520930,-592.08,0.00052328,120]
[331506064,1720444521010,-599.01,0.00052328,120]
[331506065,1720444521088,-500.0,0.00052328,120]
[331506066,1720444521168,-500.0,0.00052328,120]
[331506067,1720444521248,-500.0,0.00052328,120]
[331506068,1720444521326,-527.34,0.00052328,120]
[331506069,1720444521409,-500.0,0.00052328,120]
[331506070,1720444521488,-516.36296631,0.00052328,120]
[331506071,1720444521563,-500.0,0.00052328,120]
[331506072,1720444521637,-500.0,0.00052328,120]
[331506073,1720444521718,-500.0,0.00052328,120]
[331506074,1720444521794,-500.0,0.00052328,120]
[331506075,1720444521869,-2303.83,0.00052328,120]
[331506076,1720444521949,-1030.01,0.00052328,120]
[331506077,1720444522026,-500.0,0.00052328,120]
[331506078,1720444522104,-1129.3,0.00052328,120]
[331506079,1720444522186,-497.74359521,0.00052328,120]
[331506080,1720444522266,-500.0,0.00052328,120]
[331506081,1720444522348,-500.0,0.00052328,120]
[331506082,1720444522439,-537.46,0.00052328,120]
[331506083,1720444522515,-779.78,0.00052328,120]
[331506084,1720444522590,-500.0,0.00052328,120]
[331506085,1720444522664,-745.19,0.00052328,120]
[331506086,1720444522739,-731.02,0.00052328,120]
[331506087,1720444522813,-500.0,0.00052328,120]
[331506088,1720444522887,-500.0,0.00052328,120]
[331506089,1720444522971,-656.72,0.00052328,120]
[331506090,1720444523046,-500.0,0.00052328,120]
[331506091,1720444523121,-500.0,0.00052328,120]
[331506092,1720444523196,-1102.07,0.00052328,120]
[331506093,1720444523273,-500.0,0.00052328,120]
[331506094,1720444523349,-500.0,0.00052328,120]
[331506095,1720444523425,-500.0,0.00052328,120]
[331506096,1720444523504,-500.0,0.00052328,120]
[331506097,1720444523579,-500.0,0.00052328,120]
[331506098,1720444523655,-500.0,0.00052328,120]
[331506099,1720444523729,-367.64852441,0.00052328,120]
[331506100,1720444523802,-804.05,0.00052328,120]
[331506101,1720444523875,-500.0,0.00052328,120]
[331506102,1720444523954,-968.64,0.00052328,120]
[331506103,1720444524041,-1082.19,0.00052328,120]
[331506104,1720444524128,-500.0,0.00052328,120]
[331506105,1720444524221,-1570.5,0.00052328,120]
[331506106,1720444524322,-1935.41,0.00052328,120]
[331506107,1720444524420,-500.0,0.00052328,120]
[331506108,1720444524504,-5085.83,0.00052328,120]
[331506109,1720444524588,-500.0,0.00052328,120]
[331506110,1720444524670,-500.0,0.00052328,120]
[331506111,1720444524750,-771.26,0.00052328,120]
[331506112,1720444524830,-813.82,0.00052328,120]
[331506113,1720444524912,-1256.69,0.00052328,120]
[331506114,1720444524992,-530.51,0.00052328,120]
[331506115,1720444525072,-500.0,0.00052328,120]
[331506116,1720444525156,-500.0,0.00052328,120]
[331506117,1720444525240,-500.0,0.00052328,120]
[331506118,1720444525326,-500.0,0.00052328,120]
[331506119,1720444525409,-915.13,0.00052328,120]
[331506120,1720444525493,-511.24,0.00052328,120]
[331506121,1720444525576,-2062.26,0.00052328,120]
[331506122,1720444525658,-2547.29,0.00052328,120]
[331506123,1720444525737,-500.0,0.00052328,120]
[331506124,1720444525815,-1773.39,0.00052328,120]
[331506125,1720444525893,-722.73,0.00052328,120]
[331506126,1720444525975,-962.79,0.00052328,120]
[331506127,1720444526059,-1826.77,0.00052328,120]
[331506128,1720444526141,-500.0,0.00052328,120]
[331506129,1720444526223,-1768.04,0.00052328,120]
[331506130,1720444526303,-1447.56,0.00052328,120]
[331506131,1720444526383,-1801.6,0.00052328,120]
[331506132,1720444526678,-500.0,0.00052328,120]
[331506133,1720444526761,-500.0,0.00052328,120]
[331506134,1720444526842,-2861.76,0.00052328,120]
[331506135,1720444526927,-1122.87,0.00052328,120]
[331506136,1720444527012,-526.91,0.00052328,120]
[331506137,1720444527094,-500.0,0.00052328,120]
[331506138,1720444527176,-500.0,0.00052328,120]
[331506139,1720444527256,-686.39,0.00052328,120]
[331506140,1720444527344,-1136.27,0.00052328,120]
[331506141,1720444527431,-3164.35,0.00052328,120]
[331506142,1720444527519,-505.54,0.00052328,120]
[331506143,1720444527606,-1162.49,0.00052328,120]
[331506144,1720444527685,-1906.95,0.00052328,120]
[331506145,1720444527766,-500.0,0.00052328,120]
[331506146,1720444527847,-1298.4,0.00052328,120]
[331506147,1720444527925,-1181.68,0.00052328,120]
[331506148,1720444528005,-500.0,0.00052328,120]
[331506149,1720444528089,-2349.1,0.00052328,120]
[331506150,1720444528182,-811.45,0.00052328,120]
[331506151,1720444528267,-2038.75,0.00052328,120]
[331506152,1720444528344,-759.35,0.00052328,120]
[331506153,1720444528426,-1664.25,0.00052328,120]
[331506154,1720444528506,-858.68,0.00052328,120]
[331506155,1720444528586,-1349.79,0.00052328,120]
[331506156,1720444528663,-502.55,0.00052328,120]
[331506157,1720444528743,-500.0,0.00052328,120]
[331506158,1720444528821,-500.0,0.00052328,120]
[331506159,1720444528902,-3020.56,0.00052328,120]
[331506160,1720444528991,-500.0,0.00052328,120]
[331506161,1720444529081,-500.0,0.00052328,120]
[331506162,1720444529179,-1293.82,0.00052328,120]
[331506163,1720444529277,-1674.53,0.00052328,120]
[331506164,1720444529365,-1078.52,0.00052328,120]
[331506165,1720444529445,-500.0,0.00052328,120]
[331506166,1720444529527,-625.62,0.00052328,120]
[331506167,1720444529606,-834.62,0.00052328,120]
[331506168,1720444529685,-500.0,0.00052328,120]
[331506169,1720444529764,-1390.62,0.00052328,120]
[331506170,1720444529848,-1406.2,0.00052328,120]
[331506171,1720444529931,-500.0,0.00052328,120]
[331506172,1720444530026,-500.0,0.00052328,120]
[331506173,1720444530115,-500.0,0.00052328,120]
[331506174,1720444530204,-669.87,0.00052328,120]
[331506175,1720444530292,-500.0,0.00052328,120]
[331506176,1720444530382,-500.0,0.00052328,120]
[331506177,1720444530471,-728.82,0.00052328,120]
[331506178,1720444530556,-2399.28,0.00052328,120]
[331506179,1720444530642,-1434.06,0.00052328,120]
[331506180,1720444530729,-500.0,0.00052328,120]
[331506181,1720444530813,-510.34,0.00052328,120]
[331506182,1720444530896,-2007.19,0.00052328,120]
[331506183,1720444530988,-489.29481333,0.00052328,120]
[331506184,1720444531073,-1253.66,0.00052328,120]
[331506185,1720444531159,-1628.65,0.00052328,120]
[331506186,1720444531243,-1435.39,0.00052328,120]
[331506187,1720444531322,-2683.83,0.00052328,120]
[331506188,1720444531402,-500.0,0.00052328,120]
[331506189,1720444531481,-1226.3,0.00052328,120]
[331506190,1720444531562,-856.13,0.00052328,120]
[331506191,1720444531642,-1397.31,0.00052328,120]
[331506192,1720444531723,-602.51,0.00052328,120]
[331506193,1720444531808,-667.55,0.00052328,120]
[331506194,1720444531887,-500.0,0.00052328,120]
[331506195,1720444531968,-1620.69,0.00052328,120]
[331506196,1720444532047,-812.96,0.00052328,120]
[331506197,1720444532124,-2144.73,0.00052328,120]
[331506198,1720444532201,-3560.63,0.00052328,120]
[331506199,1720444532276,-1545.37,0.00052328,120]
[331506200,1720444532351,-500.0,0.00052328,120]
[331506201,1720444532442,-198.83922637,0.00052328,120]
[331506202,1720444532523,-505.85,0.00052328,120]
[331506203,1720444532615,-500.0,0.00052328,120]
[331506204,1720444532700,-801.42,0.00052328,120]
[331506205,1720444532778,-590.02189377,0.00052328,120]
[331506206,1720444532855,-3858.43,0.00052328,120]
[331506207,1720444532933,-500.0,0.00052328,120]
[331506208,1720444533016,-4446.26,0.00052328,120]
[331506209,1720444533094,-500.0,0.00052328,120]
[331506210,1720444533172,-737.86,0.00052328,120]
[331506211,1720444533249,-564.21,0.00052328,120]
[331506212,1720444533325,-988.15,0.00052328,120]
[331506213,1720444533403,-6909.46,0.00052328,120]
[331506214,1720444533485,-6124.77,0.00052328,120]
[331506215,1720444533562,-7434.29,0.00052328,120]
[331506216,1720444533637,-1564.94,0.00052328,120]
[331506217,1720444533714,-3097.92,0.00052328,120]
[331506218,1720444533788,-205.88539289,0.00052328,120]
[331506219,1720444533863,-2569.11,0.00052328,120]
[331506220,1720444533938,-4977.25,0.00052328,120]
[331506221,1720444534024,-512.87984031,0.00052328,120]
[331506222,1720444534109,-817.49,0.00052328,120]
[331506223,1720444534196,-6557.78,0.00052328,120]
[331506224,1720444534278,-8047.98,0.00052328,120]
[331506225,1720444534363,-4890.76,0.00052328,120]
[331506226,1720444534445,-926.07,0.00052328,120]
[331506227,1720444534525,-634.86,0.00052328,120]
[331506228,1720444534606,-5071.97,0.00052328,120]
[331506229,1720444534694,-5197.47,0.00052328,120]
[331506230,1720444534781,-500.0,0.00052328,120]
[331506231,1720444534861,-12824.58,0.00052328,120]
[331506232,1720444534943,-5000.69,0.00052328,120]
[331506233,1720444535024,-737.63,0.00052328,120]
[331506234,1720444535106,-500.0,0.00052328,120]
[331506235,1720444535190,-979.51,0.00052328,120]
[331506236,1720444535472,-1089.79,0.00052328,120]
[331506237,1720444535555,-500.0,0.00052328,120]
[331506238,1720444535638,-602.11,0.00052328,120]
[331506239,1720444535721,-3962.26,0.00052328,120]
[331506240,1720444535803,-816.01,0.00052328,120]
[331506241,1720444535887,-5967.11,0.00052328,120]
[331506242,1720444535970,-500.0,0.00052328,120]
[331506243,1720444536054,-3856.8,0.00052328,120]
[331506244,1720444536136,-432.04802883,0.00052328,120]
[331506245,1720444536221,-952.17,0.00052328,120]
[331506246,1720444536304,-1444.4,0.00052328,120]
[331506247,1720444536388,-4328.98,0.00052328,120]
[331506248,1720444536474,-602.68,0.00052328,120]
[331506249,1720444536556,-500.0,0.00052328,120]
[331506250,1720444536637,-1667.53,0.00052328,120]
[331506251,1720444536718,-4918.52,0.00052328,120]
[331506252,1720444536800,-1665.81,0.00052328,120]
[331506253,1720444536884,-500.0,0.00052328,120]
[331506254,1720444536970,-1892.85,0.00052328,120]
[331506255,1720444537050,-1343.01,0.00052328,120]
[331506256,1720444537131,-2033.08,0.00052328,120]
[331506257,1720444537213,-3737.99,0.00052328,120]
[331506258,1720444537294,-681.78,0.00052328,120]
[331506259,1720444537378,-2432.96,0.00052328,120]
[331506260,1720444537462,-8334.2,0.00052328,120]
[331506261,1720444537548,-2303.71,0.00052328,120]
[331506262,1720444537632,-500.0,0.00052328,120]
[331506263,1720444537717,-7113.69,0.00052328,120]
[331506264,1720444537792,-2372.86,0.00052328,120]
[331506265,1720444537870,-6365.6,0.00052328,120]
[331506266,1720444537950,-3895.56,0.00052328,120]
[331506267,1720444538028,-500.0,0.00052328,120]
[331506268,1720444538108,-4737.12,0.00052328,120]
[331506269,1720444538190,-4028.67,0.00052328,120]
[331506270,1720444538269,-2932.06,0.00052328,120]
[331506271,1720444538348,-3721.64,0.00052328,120]
[331506272,1720444538431,-9769.22,0.00052328,120]
[331506273,1720444538508,-579.46,0.00052328,120]
[331506274,1720444538585,-1491.25,0.00052328,120]
[331506275,1720444538662,-9789.62,0.00052328,120]
[331506276,1720444538738,-1519.45,0.00052328,120]
[331506277,1720444538812,-18403.09,0.00052328,120]
[331506278,1720444538887,-500.0,0.00052328,120]
[331506279,1720444538969,-5134.91,0.00052328,120]
[331506280,1720444539055,-506.61,0.00052328,120]
[331506281,1720444539144,-2497.28,0.00052328,120]
[331506282,1720444539233,-552.8,0.00052328,120]
[331506283,1720444539316,-1667.87,0.00052328,120]
[331506284,1720444539403,-1198.7,0.00052328,120]
[331506285,1720444539493,-14120.27,0.00052328,120]
[331506286,1720444539578,-5150.8,0.00052328,120]
[331506287,1720444539665,-8496.48,0.00052328,120]
[331506288,1720444539748,-666.9,0.00052328,120]
[331506289,1720444539833,-500.0,0.00052328,120]
[331506290,1720444539919,-77163.49,0.00052328,120]
[331506291,1720444540009,-1701.37,0.00052328,120]
[331506292,1720444540097,-500.0,0.00052328,120]
[331506293,1720444540185,-1695.49,0.00052328,120]
[331506294,1720444540276,-3671.69,0.00052328,120]
[331506295,1720444540370,-43789.77,0.00052328,120]
[331506296,1720444540461,-744.56,0.00052328,120]
[331506297,1720444540551,-5882.08,0.00052328,120]
[331506298,1720444540650,-2648.44,0.00052328,120]
[331506299,1720444540747,-4253.18,0.00052328,120]
[331506300,1720444540838,-500.0,0.00052328,120]
[331506301,1720444540922,-2191.17,0.00052328,120]
[331506302,1720444541009,-500.0,0.00052328,120]
[331506303,1720444541094,-4023.3,0.00052328,120]
[331506304,1720444541180,-500.0,0.00052328,120]
[331506305,1720444541260,-1885.58,0.00052328,120]
[331506306,1720444541339,-500.0,0.00052328,120]
[331506307,1720444541426,-20208.54,0.00052328,120]
[331506308,1720444541509,-5732.02,0.00052328,120]
[331506309,1720444541593,-4518.2,0.00052328,120]
[331506310,1720444541673,-3467.68,0.00052328,120]
[331506311,1720444541753,-3285.94,0.00052328,120]
[331506312,1720444541832,-843.34,0.00052328,120]
[331506313,1720444541916,-500.0,0.00052328,120]
[331506314,1720444541997,-579.73,0.00052328,120]
[331506315,1720444542078,-7921.19,0.00052328,120]
[331506316,1720444542156,-2995.09,0.00052328,120]
[331506317,1720444542238,-521.56,0.00052328,120]
[331506318,1720444542322,-4816.6,0.00052328,120]
[331506319,1720444542407,-500.0,0.00052328,120]
[331506320,1720444542499,-500.0,0.00052328,120]
[331506321,1720444542588,-500.0,0.00052328,120]
[331506322,1720444542670,-287.49141949,0.00052328,120]
[331506323,1720444542749,-5616.29,0.00052328,120]
[331506324,1720444542828,-500.0,0.00052328,120]
[331506325,1720444542905,-4754.74,0.00052328,120]
[331506326,1720444542983,-2818.99,0.00052328,120]
[331506327,1720444543061,-3610.51,0.00052328,120]
[331506328,1720444543140,-2101.17,0.00052328,120]
[331506329,1720444543218,-7384.37,0.00052328,120]
[331506330,1720444543293,-13611.45,0.00052328,120]
[331506331,1720444543367,-965.22,0.00052328,120]
[331506332,1720444543450,-500.0,0.00052328,120]
[331506333,1720444543524,-547.56,0.00052328,120]
[331506334,1720444543600,-500.0,0.00052328,120]
[331506335,1720444543675,-583.78,0.00052328,120]
[331506336,1720444543752,-3854.26,0.00052328,120]
[331506337,1720444543827,-500.0,0.00052328,120]
[331506338,1720444543902,-10162.8,0.00052328,120]
[331506339,1720444543986,-500.0,0.00052328,120]
[331506340,1720444544271,-938.43,0.00052328,120]
[331506341,1720444544351,-1124.37,0.00052328,120]
[331506342,1720444544433,-4983.01,0.00052328,120]
[331506343,1720444544516,-5118.07,0.00052328,120]
[331506344,1720444544594,-323.63752391,0.00052328,120]
[331506345,1720444544672,-500.0,0.00052328,120]
[331506346,1720444544751,-500.0,0.00052328,120]
[331506347,1720444544829,-2432.5,0.00052328,120]
[331506348,1720444544909,-500.0,0.00052328,120]
[331506349,1720444544992,-5565.77,0.00052328,120]
[331506350,1720444545071,-2686.57,0.00052328,120]
[331506351,1720444545150,-524.96,0.00052328,120]
[331506352,1720444545233,-500.0,0.00052328,120]
[331506353,1720444545318,-1454.12,0.00052328,120]
[331506354,1720444545400,-5036.27,0.00052328,120]
[331506355,1720444545485,-2304.81,0.00052328,120]
[331506356,1720444545566,-1067.33,0.00052328,120]
[331506357,1720444545649,-500.0,0.00052328,120]
[331506358,1720444545730,-1767.38,0.00052328,120]
[331506359,1720444545808,-5646.1,0.00052328,120]
[331506360,1720444545885,-9047.3,0.00052328,120]
[331506361,1720444545967,-4701.07,0.00052328,120]
[331506362,1720444546050,-4919.53,0.00052328,120]
[331506363,1720444546132,-500.0,0.00052328,120]
[331506364,1720444546212,-1659.74,0.00052328,120]
[331506365,1720444546291,-1525.81,0.00052328,120]
[331506366,1720444546371,-4421.49,0.00052328,120]
[331506367,1720444546449,-2133.05,0.00052328,120]
[331506368,1720444546528,-500.0,0.00052328,120]
[331506369,1720444546607,-7680.57,0.00052328,120]
[331506370,1720444546684,-3352.13,0.00052328,120]
[331506371,1720444546760,-1759.96,0.00052328,120]
[331506372,1720444546838,-3903.92,0.00052328,120]
[331506373,1720444546915,-500.0,0.00052328,120]
[331506374,1720444546996,-5951.51,0.00052328,120]
[331506375,1720444547075,-3833.49,0.00052328,120]
[331506376,1720444547153,-1631.9,0.00052328,120]
[331506377,1720444547236,-2176.54,0.00052328,120]
[331506378,1720444547316,-5146.59,0.00052328,120]
[331506379,1720444547397,-6347.68,0.00052328,120]
[331506380,1720444547488,-1088.69,0.00052328,120]
[331506381,1720444547572,-500.0,0.00052328,120]
[331506382,1720444547648,-23579.31,0.00052328,120]
[331506383,1720444547726,-500.0,0.00052328,120]
[331506384,1720444547800,-3966.4,0.00052328,120]
[331506385,1720444547875,-2068.28,0.00052328,120]
[331506386,1720444547952,-2578.3,0.00052328,120]
[331506387,1720444548026,-3921.63,0.00052328,120]
[331506388,1720444548102,-58243.57,0.00052328,120]
[331506389,1720444548178,-508.44,0.00052328,120]
[331506390,1720444548254,-627.12,0.00052328,120]
[331506391,1720444548330,-24232.54,0.00052328,120]
[331506392,1720444548407,-500.0,0.00052328,120]
[331506393,1720444548491,-552.36,0.00052328,120]
[331506394,1720444548570,-500.0,0.00052328,120]
[331506395,1720444548650,-6752.46,0.00052328,120]
[331506396,1720444548742,-5320.57,0.00052328,120]
[331506397,1720444548829,-623.17,0.00052328,120]
[331506398,1720444548908,-500.0,0.00052328,120]
[331506399,1720444548998,-695.92,0.00052328,120]
[331506400,1720444549092,-2080.87,0.00052328,120]
[331506401,1720444549183,-6849.11,0.00052328,120]
[331506402,1720444549266,-500.0,0.00052328,120]
[331506403,1720444549347,-1687.12,0.00052328,120]
[331506404,1720444549432,-1101.67,0.00052328,120]
[331506405,1720444549516,-741.08,0.00052328,120]
[331506406,1720444549600,-500.0,0.00052328,120]
[331506407,1720444549682,-500.0,0.00052328,120]
[331506408,1720444549764,-6100.12,0.00052328,120]
[331506409,1720444549845,-1353.36,0.00052328,120]
[331506410,1720444549929,-500.0,0.00052328,120]
[331506411,1720444550014,-500.0,0.00052328,120]
[331506412,1720444550100,-6271.45,0.00052328,120]
[331506413,1720444550186,-2621.09,0.00052328,120]
[331506414,1720444550270,-2109.31,0.00052328,120]
[331506415,1720444550353,-500.0,0.00052328,120]
[331506416,1720444550443,-12321.64,0.00052328,120]
[331506417,1720444550735,-538.98,0.00052328,120]
[331506418,1720444550815,-5668.6,0.00052328,120]
[331506419,1720444550895,-6141.18,0.00052328,120]
[331506420,1720444550984,-500.0,0.00052328,120]
[331506421,1720444551070,-500.0,0.00052328,120]
[331506422,1720444551160,-1783.66,0.00052328,120]
[331506423,1720444551255,-768.98,0.00052328,120]
[331506424,1720444551336,-639.8,0.00052328,120]
[331506425,1720444551426,-1148.58,0.00052328,120]
[331506426,1720444551509,-500.0,0.00052328,120]
[331506427,1720444551595,-1046.64,0.00052328,120]
[331506428,1720444551674,-500.0,0.00052328,120]
[331506429,1720444551752,-500.0,0.00052328,120]
[331506430,1720444551832,-500.0,0.00052328,120]
[331506431,1720444551911,-500.0,0.00052328,120]
[331506432,1720444551995,-1380.83,0.00052328,120]
[331506433,1720444552076,-2383.64,0.00052328,120]
[331506434,1720444552158,-2726.39,0.00052328,120]
[331506435,1720444552246,-1348.55,0.00052328,120]
[331506436,1720444552328,-646.48,0.00052328,120]
[331506437,1720444552410,-5858.28,0.00052328,120]
[331506438,1720444552493,-3087.04,0.00052328,120]
[331506439,1720444552569,-500.0,0.00052328,120]
[331506440,1720444552645,-768.16,0.00052328,120]
[331506441,1720444552718,-1098.42,0.00052328,120]
[331506442,1720444552789,-1151.32,0.00052328,120]
[331506443,1720444552862,-28264.79,0.00052328,120]
[331506444,1720444552940,-3804.3,0.00052328,120]
[331506445,1720444553016,-500.0,0.00052328,120]
[331506446,1720444553093,-1188.45,0.00052328,120]
[331506447,1720444553171,-500.0,0.00052328,120]
[331506448,1720444553246,-634.13,0.00052328,120]
[331506449,1720444553323,-1074.63,0.00052328,120]
[331506450,1720444553400,-1971.31,0.00052328,120]
[331506451,1720444553479,-5641.11,0.00052328,120]
[331506452,1720444553558,-972.69,0.00052328,120]
[331506453,1720444553636,-500.0,0.00052328,120]
[331506454,1720444553712,-652.19,0.00052328,120]
[331506455,1720444553788,-500.0,0.00052328,120]
[331506456,1720444553865,-500.0,0.00052328,120]
[331506457,1720444553944,-1765.23,0.00052328,120]
[331506458,1720444554038,-1216.89,0.00052328,120]
[331506459,1720444554131,-500.0,0.00052328,120]
[331506460,1720444554221,-500.0,0.00052328,120]
[331506461,1720444554301,-500.0,0.00052328,120]
[331506462,1720444554381,-411.1051468,0.00052328,120]
[331506463,1720444554462,-5055.86,0.00052328,120]
[331506464,1720444554544,-500.0,0.00052328,120]
[331506465,1720444554624,-711.2,0.00052328,120]
[331506466,1720444554705,-2570.12,0.00052328,120]
[331506467,1720444554787,-2420.66,0.00052328,120]
[331506468,1720444554866,-375.652882,0.00052328,120]
[331506469,1720444554949,-2264.16,0.00052328,120]
[331506470,1720444555032,-672.24,0.00052328,120]
[331506471,1720444555113,-3711.44,0.00052328,120]
[331506472,1720444555192,-3195.91,0.00052328,120]
[331506473,1720444555275,-500.0,0.00052328,120]
[331506474,1720444555359,-500.0,0.00052328,120]
[331506475,1720444555445,-2590.75,0.00052328,120]
[331506476,1720444555531,-822.01,0.00052328,120]
[331506477,1720444555616,-3178.37,0.00052328,120]
[331506478,1720444555702,-500.0,0.00052328,120]
[331506479,1720444555785,-1501.03,0.00052328,120]
[331506480,1720444555870,-4176.17,0.00052328,120]
[331506481,1720444555955,-4652.58,0.00052328,120]
[331506482,1720444556042,-500.0,0.00052328,120]
[331506483,1720444556122,-607.4,0.00052328,120]
[331506484,1720444556205,-1039.34,0.00052328,120]
[331506485,1720444556289,-500.0,0.00052328,120]
[331506486,1720444556374,-517.37,0.00052328,120]
[331506487,1720444556460,-724.29,0.00052328,120]
[331506488,1720444556543,-500.0,0.00052328,120]
[331506489,1720444556625,-1620.57,0.00052328,120]
[331506490,1720444556703,-1793.43,0.00052328,120]
[331506491,1720444556785,-12165.5,0.00052328,120]
[331506492,1720444556866,-976.96,0.00052328,120]